[Event "IIFL Wealth  4th Mumbai Junior U-13"]
[Site "Mumbai"]
[Date "2019.01.07"]
[Round "9"]
[White "Ayush Sharma"]
[Black "Dhanvij Ansh"]
[Result "1-0"]
[ECO "B13"]
[WhiteElo "1979"]
[BlackElo "1523"]
[Annotator "NA RC"]
[PlyCount "75"]
[EventDate "2018.12.30"]
[EventType "swiss"]
[EventCountry "IND"]
[SourceTitle "playchess.com"]
[Source "ChessBase"]
[SourceQuality "1"]
[TimeControl "40/5400+30:1800+30"]

1. e4 {[%emt 0:00:00]} c6 {[%emt 0:00:00]} 2. d4 {[%emt 0:00:00]} d5 {[%emt 0:00:07]} 3. exd5 {[%emt 0:00:00]} cxd5 {[%emt 0:00:14]} 4. Bd3 {[%emt 0:00:00]} Nc6 {[%emt 0:00:26]} 5. c3 {[%emt 0:00:03]} Qc7 {[%emt 0:00:26]} 6. Ne2 {[%emt 0:00:09]} Bg4 {[%emt 0:00:25]} 7. f3 {[%emt 0:00:03]} Bd7 {[%emt 0:00:18]} 8. Bf4 {[%emt 0:00:06]} e5 {[%emt 0:00:36] B13: Caro-Kann: Exchange Variation and Panov-Botvinnik Attack} 9. dxe5 {[%emt 0:00:04]} Nxe5 {[%emt 0:00:12]} 10. O-O {[%emt 0:00:32]} Bd6 {[%emt 0:00:34]} (10... Nf6 11. Nd4 Bd6 12. Na3 O-O 13. Kh1 Bxa3 14. bxa3 Nh5 15. Bxe5 Qxe5 16. Re1 {½-½ (35) Gusain,H (2461)-Warakomski,T (2518) Warsaw 2017}) 11. Na3 {[%emt 0:00:29]} Nf6 {[%emt 0:01:06]} 12. Nb5 {[%emt 0:00:41]} Qb6+ $146 {[%emt 0:01:23]} ({Predecessor:} 12... Bxb5 13. Bxb5+ Nc6 14. Bxd6 Qxd6 15. Qd2 O-O {0-1 (30) Lovati,E (1374)-Margstahler,F (1836) Milan 2010}) 13. Ned4 {[%emt 0:00:19]} Bxb5 {[%emt 0:08:57]} 14. Bxb5+ {[%emt 0:01:44]} Kf8 {[%emt 0:02:14]} 15. Be3 {[%emt 0:16:36]} Bc5 {[%emt 0:07:42]} 16. Qe2 {[%emt 0:00:05]} a6 {[%emt 0:01:35]} 17. b4 {[%emt 0:01:53]} Bxd4 {[%emt 0:08:33]} 18. Bxd4 {[%emt 0:00:09]} Qxb5 {[%emt 0:00:19]} 19. Qxe5 {[%emt 0:00:03]} Qc6 {[%emt 0:02:25]} 20. Rfe1 {[%emt 0:14:34]} Re8 {[%emt 0:06:38]} 21. Qf5 {[%emt 0:00:47]} Re6 {[%emt 0:02:18]} 22. Re5 {[%emt 0:02:18]} Rxe5 $2 {[%emt 0:02:43]} (22... h5 23. Rae1 Rxe5 24. Qxe5 Kg8) 23. Qxe5 {[%emt 0:00:15]} ({Weaker is} 23. Bxe5 Qe6 $16) 23... h6 {[%emt 0:16:19]} (23... Qc8 {was worth a try.} 24. Qd6+ Kg8) 24. Qb8+ {[%emt 0:00:50]} ({Not} 24. Re1 Kg8 $18) 24... Qe8 {[%emt 0:02:03]} 25. Qxb7 {[%emt 0:04:09]} Kg8 {[%emt 0:02:08]} 26. Qxa6 {[%emt 0:00:10]} Nd7 {[%emt 0:00:08]} 27. a4 {[%emt 0:01:27]} Kh7 {[%emt 0:00:40]} 28. Qd3+ {[%emt 0:00:03]} Kg8 {[%emt 0:00:13]} 29. a5 {[%emt 0:00:07]} f6 {[%emt 0:00:10]} 30. Qf5 {[%emt 0:01:44]} Qf7 {[%emt 0:00:59]} 31. a6 {[%emt 0:01:49]} g6 {[%emt 0:00:26]} 32. Qf4 {[%emt 0:00:06]} Kg7 {[%emt 0:00:08]} 33. a7 {[%emt 0:00:28]} Ra8 {[%emt 0:00:09]} 34. Qc7 {[%emt 0:00:12]} Qe8 {[%emt 0:00:27]} 35. b5 $18 {[%emt 0:00:51]} Rxa7 {[%emt 0:00:28]} 36. Bxa7 {[%emt 0:00:12]} g5 {[%emt 0:00:11]} 37. b6 {[%emt 0:00:17]} Qe3+ {[%emt 0:00:10]} 38. Kh1 {[%emt 0:00:06]} 1-0

[Event "IIFL Wealth  4th Mumbai Junior U-13"]
[Site "Mumbai"]
[Date "2019.01.07"]
[Round "9"]
[White "Shah Jeet"]
[Black "Manish Anto Cristiano F"]
[Result "1/2-1/2"]
[ECO "B90"]
[WhiteElo "1904"]
[BlackElo "2065"]
[Annotator "NA RC"]
[PlyCount "121"]
[EventDate "2018.12.30"]
[EventType "swiss"]
[EventCountry "IND"]
[SourceTitle "playchess.com"]
[Source "ChessBase"]
[SourceQuality "1"]
[TimeControl "40/5400+30:1800+30"]

{[%evp 22,116,12,32767,32767,-12,17,-62,32767,32767,-62,-62,-85,-76,-69,-59,32767,32767,32767,-75,-51,-36,-33,-60,-39,-37,-24,-85,-80,32767,32767,-12,32767,32767,32767,32767,32767,0,0,-30,-19,-43,-31,-22,-18,-21,-8,-19,-21,-27,-8,-25,-30,-26,-10,32767,32767,32767,32767,32767,-183,-176,-187,-174,-199,32767,32767,32767,-40,-47,-31,-68,-23,-24,-37,-39,-8,-8,0,0,-3,-6,8,-4,6,8,8,8,8,8,8,8,20,18,19,14,15]} 1. e4 {[%emt 0:04:31]} c5 {[%emt 0:00:00]} 2. Nf3 {[%emt 0:00:08]} d6 {[%emt 0:00:02]} 3. d4 {[%emt 0:00:08]} cxd4 {[%emt 0:00:30]} 4. Nxd4 {[%emt 0:00:07]} Nf6 {[%emt 0:00:31]} 5. Nc3 {[%emt 0:00:08]} a6 {[%emt 0:00:37]} 6. Bc4 {[%emt 0:02:28]} e6 {[%emt 0:00:22]} 7. Bb3 {[%emt 0:00:05]} Nbd7 {[%emt 0:00:33]} 8. f4 {[%emt 0:00:13]} Nc5 {[%emt 0:00:28]} 9. f5 {[%emt 0:02:55]} Be7 {[%emt 0:04:18]} 10. O-O {[%emt 0:03:46]} O-O {[%emt 0:00:55]} 11. Qf3 {[%emt 0:04:18]} Kh8 {[%emt 0:06:28] LiveBook: 4 Games B86: Sicilian Scheveningen/Najdorf: 6 Bc4, without early ...b5} 12. g4 {[%emt 0:06:20]} Nfd7 {[%emt 0:03:41]} 13. Qg2 $146 {[%emt 0:14:01]} ({Predecessor:} 13. Be3 Ne5 14. Qg3 Bd7 15. Rad1 Bh4 16. Qg2 Bg5 17. Bf2 b5 18. Nf3 Nxf3+ 19. Qxf3 {½-½ (41) Honfi,K-Vogt,L (2495) Trnava 1982}) 13... Ne5 {[%emt 0:04:50]} 14. Nf3 {[%emt 0:07:01]} (14. g5 $11) 14... Nxf3+ {[%emt 0:06:39]} 15. Rxf3 {[%emt 0:00:55]} b5 {[%emt 0:02:25]} 16. fxe6 {[%emt 0:06:25]} fxe6 17. Rxf8+ {[%emt 0:01:24]} Bxf8 {[%emt 0:02:31]} 18. Be3 Nxb3 {[%emt 0:05:16]} 19. axb3 {[%emt 0:00:40]} Bb7 {[%emt 0:00:09]} 20. Rf1 {[%emt 0:03:35]} Qd7 {[%emt 0:03:25]} 21. Qf3 {[%emt 0:10:28]} Kg8 {[%emt 0:03:40]} 22. g5 {[%emt 0:00:35]} Rc8 {[%emt 0:03:19]} 23. h4 {[%emt 0:04:33]} Qe8 {[%emt 0:05:28]} (23... d5 $5 {[%cal Rd5d4]} 24. Qd1 {[#]} d4 $1 {[%mdl 512]} 25. Qxd4 Qxd4 26. Bxd4 b4 $17) 24. Qg4 {[%emt 0:13:34]} (24. Rf2 $11 {remains equal.}) 24... b4 {[%emt 0:04:05]} 25. Ne2 {[%emt 0:01:07]} Qg6 {[%emt 0:00:31]} 26. Nf4 {[%emt 0:06:21]} Qxe4 {[%emt 0:01:00]} 27. Qxe6+ {[%emt 0:00:03]} Qxe6 {[%emt 0:00:27]} 28. Nxe6 {[%emt 0:00:01]} Be7 {[%emt 0:00:01]} 29. Nd4 {[%emt 0:01:20]} Be4 {[%emt 0:00:13]} 30. Rf2 {[%emt 0:02:52]} d5 {[%emt 0:00:56]} 31. Kf1 {[%emt 0:01:03]} Bd6 {[%emt 0:00:39]} 32. Nf5 {[%emt 0:00:49]} Bf8 {[%emt 0:01:23]} 33. Nd4 {[%emt 0:01:13]} g6 {[%emt 0:00:29]} 34. Ke1 {[%emt 0:01:02]} Bg7 {[%emt 0:00:19]} 35. Kd1 {[%emt 0:00:43]} Be5 {[%emt 0:00:25]} 36. Kc1 {[%emt 0:01:51]} a5 {[%emt 0:00:17]} 37. Kd1 {[%emt 0:01:12]} Ra8 {[%emt 0:01:48]} 38. Nc6 {[%emt 0:00:34]} Bxb2 {[%emt 0:00:14]} 39. Bb6 {[%emt 0:00:29]} a4 {[%emt 0:00:22]} 40. Nxb4 {[%emt 0:00:00]} axb3 {[%emt 0:00:00]} 41. cxb3 {[%emt 0:01:00]} Bc3 {[%emt 0:01:42]} 42. Na2 {[%emt 0:04:16]} Be5 {[%emt 0:00:18]} 43. Rd2 {[%emt 0:01:00]} Rb8 {[%emt 0:01:18]} 44. Bd4 {[%emt 0:01:01]} Bf4 {[%emt 0:02:00]} (44... Bg3 $17 45. Nc3 Bxh4 46. Nxe4 dxe4) 45. Rb2 $1 {[%emt 0:01:32]} Bg3 {[%emt 0:00:33]} 46. b4 $1 {[%emt 0:01:52]} Bxh4 {[%emt 0:00:22]} 47. b5 {[%emt 0:02:34]} Bxg5 {[%emt 0:00:37]} 48. b6 $1 {[%emt 0:00:16]} Bf4 {[%emt 0:00:40]} 49. b7 {[%emt 0:01:44]} Re8 {[%emt 0:02:41]} 50. Nb4 {[%emt 0:01:25]} Bf3+ {[%emt 0:01:10]} 51. Kc2 {[%emt 0:00:04]} Re6 {[%emt 0:00:42]} 52. Nd3 {[%emt 0:10:03]} Be4 {[%emt 0:02:43]} 53. b8=Q+ {[%emt 0:00:47]} Bxb8 {[%emt 0:00:12]} 54. Rxb8+ {[%emt 0:00:01]} Kf7 {[%emt 0:00:13]} 55. Rh8 {[%emt 0:04:08]} g5 {[%emt 0:00:20]} 56. Kd2 {[%emt 0:00:35]} Kg6 {[%emt 0:01:11]} 57. Nc5 {[%emt 0:03:05]} Re7 {[%emt 0:00:14]} 58. Rg8+ {[%emt 0:00:57]} Kf5 $11 {[%emt 0:00:24]} 59. Ke3 {[%emt 0:02:04]} h5 {[%emt 0:00:50]} 60. Rf8+ {[%emt 0:01:03]} Kg4 {[%emt 0:00:11]} 61. Bf6 {[%emt 0:00:18]} 1/2-1/2

[Event "IIFL Wealth  4th Mumbai Junior U-13"]
[Site "Mumbai"]
[Date "2019.01.07"]
[Round "9"]
[White "Larmet, Nino"]
[Black "Kriti Mayur Patel"]
[Result "1/2-1/2"]
[ECO "C77"]
[WhiteElo "1835"]
[BlackElo "1439"]
[Annotator "NA RC"]
[PlyCount "117"]
[EventDate "2018.12.30"]
[EventType "swiss"]
[EventCountry "IND"]
[SourceTitle "playchess.com"]
[Source "ChessBase"]
[SourceQuality "1"]
[TimeControl "40/5400+30:1800+30"]

1. e4 {[%emt 0:00:09]} e5 {[%emt 0:00:00]} 2. Nf3 {[%emt 0:00:05]} Nc6 {[%emt 0:00:00]} 3. Bb5 {[%emt 0:00:08]} a6 {[%emt 0:00:00]} 4. Ba4 {[%emt 0:00:04]} Nf6 {[%emt 0:00:03]} 5. d3 {[%emt 0:00:13]} b5 {[%emt 0:00:21]} 6. Bb3 {[%emt 0:00:02]} Bc5 {[%emt 0:00:14]} 7. Bg5 {[%emt 0:01:55]} O-O {[%emt 0:08:05]} 8. O-O {[%emt 0:00:47]} d6 {[%emt 0:02:07] C78: Ruy Lopez: Archangelsk and Möller Defences} 9. c3 {[%emt 0:00:21]} h6 {[%emt 0:04:37]} 10. Bh4 {[%emt 0:00:21]} Bg4 {[%emt 0:02:13]} 11. Nbd2 {[%emt 0:02:39]} Rb8 {[%emt 0:06:07]} 12. Re1 {[%emt 0:04:19]} g5 {[%emt 0:12:26]} 13. Bg3 {[%emt 0:00:27]} Nh5 {[%emt 0:02:16]} 14. h3 {[%emt 0:02:06]} Bxf3 {[%emt 0:15:01]} 15. Qxf3 {[%emt 0:00:11]} Nxg3 {[%emt 0:00:25]} 16. Qxg3 {[%emt 0:00:03] [#]} Kh8 $146 {[%emt 0:01:37]} ({Predecessor:} 16... Qf6) 17. Qf3 {[%emt 0:03:06]} Bb6 {[%emt 0:05:03]} 18. Nf1 {[%emt 0:04:05]} Na5 {[%emt 0:05:40]} 19. Bc2 {[%emt 0:01:25]} Nc6 {[%emt 0:00:36]} 20. Ng3 {[%emt 0:00:36]} a5 {[%emt 0:16:31]} (20... Qe7 $16) 21. Rad1 {[%emt 0:15:57]} Rg8 {[%emt 0:04:51]} 22. Nh5 {[%emt 0:11:05]} ({Reject} 22. Qxf7 $6 Rf8 $11) 22... Qe7 {[%emt 0:03:12]} 23. Nf6 {[%emt 0:01:15]} Rg6 {[%emt 0:00:23]} 24. Nd5 {[%emt 0:00:10]} Qd7 {[%emt 0:01:14]} 25. Bb3 {[%emt 0:03:27]} Ba7 {[%emt 0:00:52]} 26. Ne3 {[%emt 0:03:36]} Rf8 {[%emt 0:00:59]} 27. Qf5 {[%emt 0:03:12]} Qxf5 {[%emt 0:01:08]} 28. Nxf5 {[%emt 0:00:03]} (28. exf5 $16 Rf6 29. Nd5 Rxf5 30. Rd2) 28... Rf6 {[%emt 0:00:08]} 29. Bd5 {[%emt 0:00:35]} Ne7 $2 {[%emt 0:01:06]} ({Better is} 29... Nd8 $14) 30. Nxe7 {[%emt 0:00:20]} Bxf2+ {[%emt 0:00:07]} 31. Kf1 {[%emt 0:01:30]} Bxe1+ {[%emt 0:01:09]} 32. Kxe1 {[%emt 0:00:06]} Kh7 {[%emt 0:00:47]} 33. Ke2 {[%emt 0:00:29]} Re8 {[%emt 0:00:47]} 34. Nc6 {[%emt 0:00:08]} a4 {[%emt 0:00:43]} 35. Nb4 {[%emt 0:00:17]} Rb8 {[%emt 0:00:20]} 36. Bc6 {[%emt 0:00:53]} Rg6 {[%emt 0:01:18]} 37. Rf1 {[%emt 0:00:08]} Kg7 {[%emt 0:00:11]} 38. Bd5 {[%emt 0:00:10]} Rf6 {[%emt 0:00:29]} 39. Rxf6 {[%emt 0:01:46]} Kxf6 {[%emt 0:00:02]} 40. Bc6 {[%emt 0:00:00]} Kg6 {[%emt 0:00:00]} 41. d4 {[%emt 0:04:13]} f6 {[%emt 0:01:47]} (41... h5 $142 42. dxe5 dxe5) 42. d5 {[%emt 0:01:12]} Rb6 {[%emt 0:00:28]} 43. g4 {[%emt 0:00:43]} Kf7 {[%emt 0:04:26]} 44. Kd3 {[%emt 0:01:02]} Ke7 {[%emt 0:00:46]} 45. Nc2 {[%emt 0:00:35]} Kf7 {[%emt 0:01:39]} 46. Ne3 {[%emt 0:00:42]} Rb8 {[%emt 0:01:13]} 47. Nf5 {[%emt 0:00:58]} Kg6 {[%emt 0:00:29]} 48. Kc2 {[%emt 0:00:14]} h5 {[%emt 0:01:35]} 49. b3 {[%emt 0:00:53]} hxg4 {[%emt 0:02:21]} 50. hxg4 {[%emt 0:00:04]} axb3+ {[%emt 0:00:35]} 51. Kxb3 {[%emt 0:00:03]} Rb6 {[%emt 0:00:48]} 52. Kb4 {[%emt 0:00:11]} Ra6 {[%emt 0:00:09]} 53. a3 {[%emt 0:00:02]} Ra4+ {[%emt 0:00:18]} 54. Kb3 {[%emt 0:00:19]} Rxe4 {[%emt 0:01:48]} 55. Bxb5 {[%emt 0:00:04]} Rxg4 {[%emt 0:00:21]} 56. Ne3 {[%emt 0:02:18]} (56. Ne7+ {was worth a try.} Kf7 57. Nf5) 56... Rg3 {[%emt 0:01:03]} 57. Be8+ {[%emt 0:00:22]} Kh7 {[%emt 0:00:30]} 58. Nf5 {[%emt 0:01:54]} Rf3 {[%emt 0:04:48]} 59. Bd7 $19 {[%emt 0:00:27]} 1/2-1/2

[Event "IIFL Wealth  4th Mumbai Junior U-13"]
[Site "Mumbai"]
[Date "2019.01.07"]
[Round "9"]
[White "Aditya Varun Gampa"]
[Black "Dande Vyankatesh S"]
[Result "1/2-1/2"]
[ECO "C42"]
[WhiteElo "1809"]
[BlackElo "1418"]
[Annotator "NA RC"]
[PlyCount "182"]
[EventDate "2018.12.30"]
[EventType "swiss"]
[EventCountry "IND"]
[SourceTitle "playchess.com"]
[Source "ChessBase"]
[SourceQuality "1"]
[TimeControl "40/5400+30:1800+30"]

1. e4 {[%emt 0:07:03]} e5 {[%emt 0:00:00]} 2. Nf3 {[%emt 0:00:05]} Nf6 {[%emt 0:00:00]} 3. Nxe5 {[%emt 0:00:09]} d6 {[%emt 0:00:00]} 4. Nf3 {[%emt 0:00:07]} Nxe4 {[%emt 0:00:00]} 5. c4 {[%emt 0:00:06]} d5 {[%emt 0:01:53]} 6. cxd5 {[%emt 0:00:28] C42: Petroff Defence: 3 Nxe5 and unusual White 3rd moves} Qxd5 {[%emt 0:00:10]} 7. Nc3 {[%emt 0:00:44]} (7. Be2 Bd6 8. Nc3 Nxc3 9. dxc3 Qxd1+ 10. Bxd1 O-O 11. Be3 Nc6 12. Bc2 h6 13. O-O-O Be6 {½-½ (79) Vavulin,M (2575)-Fedoseev,V (2724) Moscow 2018}) 7... Nxc3 {[%emt 0:01:45]} 8. bxc3 {[%emt 0:01:08]} Be7 {[%emt 0:00:28]} 9. Be2 {[%emt 0:01:16]} Nc6 $146 {[%emt 0:00:48]} ({Predecessor:} 9... c5 10. c4 Qd6 11. Bb2 Bf6 12. Bxf6 Qxf6 13. Rb1 Nc6 {0-1 (35) Szymczak,Z (2400)-Drtina,M (2225) Trnava 1989}) 10. d4 {[%emt 0:00:41]} Bf6 {[%emt 0:12:58]} 11. Be3 {[%emt 0:01:12]} Bf5 {[%emt 0:03:46]} 12. Qb3 {[%emt 0:01:16]} Qxb3 {[%emt 0:00:36]} 13. axb3 {[%emt 0:00:10]} O-O {[%emt 0:00:29]} 14. O-O {[%emt 0:00:38]} a6 {[%emt 0:08:37]} 15. b4 {[%emt 0:00:49]} Rfe8 {[%emt 0:01:24]} 16. Rad1 {[%emt 0:02:05]} Rad8 {[%emt 0:00:31]} 17. d5 {[%emt 0:01:08]} Nb8 {[%emt 0:04:42]} 18. Nd4 {[%emt 0:01:56]} Bg6 {[%emt 0:07:23]} 19. c4 {[%emt 0:00:43]} Nd7 {[%emt 0:01:33]} 20. b5 {[%emt 0:02:34]} axb5 {[%emt 0:00:44]} (20... a5 $15) 21. Nxb5 {[%emt 0:00:12]} Be5 {[%emt 0:03:23]} 22. c5 {[%emt 0:01:37]} Nf6 {[%emt 0:25:47]} 23. d6 {[%emt 0:03:04]} cxd6 {[%emt 0:01:35]} 24. Nxd6 {[%emt 0:00:54]} Bxd6 {[%emt 0:00:33]} 25. Rxd6 {[%emt 0:00:17]} Ne4 {[%emt 0:01:21]} 26. Rb6 {[%emt 0:01:09]} Nxc5 {[%emt 0:02:06]} 27. Rc1 {[%emt 0:02:02]} Nd3 {[%emt 0:03:54]} 28. Bxd3 {[%emt 0:01:00]} Rxd3 {[%emt 0:00:10]} 29. Rxb7 {[%emt 0:00:10]} Red8 {[%emt 0:00:30]} 30. h3 {[%emt 0:00:36]} Rd1+ {[%emt 0:00:53]} 31. Rxd1 {[%emt 0:00:08]} Rxd1+ {[%emt 0:00:06]} 32. Kh2 {[%emt 0:00:07]} h6 {[%emt 0:00:07]} 33. h4 {[%emt 0:01:59]} Re1 {[%emt 0:00:58]} 34. g4 {[%emt 0:00:45]} Rh1+ {[%emt 0:01:30]} 35. Kg3 {[%emt 0:00:23]} Rg1+ {[%emt 0:00:19]} 36. Kf4 {[%emt 0:00:19]} h5 {[%emt 0:01:04]} 37. f3 {[%emt 0:00:26]} Rf1 {[%emt 0:01:28]} 38. Rb8+ {[%emt 0:03:16]} ({Better is} 38. g5 $11) 38... Kh7 {[%emt 0:00:17]} 39. Kg3 {[%emt 0:00:44]} hxg4 {[%emt 0:01:03]} 40. fxg4 {[%emt 0:00:00]} Be4 {[%emt 0:00:00]} 41. Bf2 {[%emt 0:01:33]} Rc1 {[%emt 0:01:52]} 42. Kf4 {[%emt 0:02:01]} Bd5 {[%emt 0:00:33]} 43. Rd8 {[%emt 0:01:33]} Rc4+ {[%emt 0:00:22]} 44. Ke5 {[%emt 0:01:09]} Be6 {[%emt 0:00:08]} 45. g5 {[%emt 0:00:26]} Rc2 {[%emt 0:00:30]} 46. Bg3 {[%emt 0:01:48]} Rc5+ {[%emt 0:01:07]} 47. Kf4 {[%emt 0:01:13]} Rc4+ {[%emt 0:00:27]} 48. Ke3 {[%emt 0:00:26]} Rc3+ {[%emt 0:00:29]} 49. Kf2 {[%emt 0:00:30]} Kg6 {[%emt 0:00:50]} 50. Rh8 {[%emt 0:01:09]} Kf5 {[%emt 0:00:30]} 51. Bd6 {[%emt 0:00:55]} Rc2+ {[%emt 0:04:20]} 52. Ke3 {[%emt 0:00:24]} Rc3+ {[%emt 0:00:32]} 53. Kd4 {[%emt 0:00:55]} Rc4+ {[%emt 0:00:34]} 54. Kd3 {[%emt 0:00:12]} g6 {[%emt 0:04:58]} 55. Be7 {[%emt 0:00:54]} Rg4 {[%emt 0:00:40]} 56. h5 {[%emt 0:00:24]} gxh5 {[%emt 0:00:53]} 57. Rxh5 {[%emt 0:00:10]} Rg3+ {[%emt 0:00:09]} 58. Ke2 {[%emt 0:00:38]} Ke4 {[%emt 0:01:51]} 59. Rh4+ {[%emt 0:00:30]} Rg4 {[%emt 0:00:21]} 60. Rh2 {[%emt 0:00:27]} Bc4+ {[%emt 0:01:00]} 61. Kd2 {[%emt 0:00:13]} Be6 {[%emt 0:00:02]} 62. Kc3 {[%emt 0:01:36]} Kf5 {[%emt 0:01:25]} 63. Re2 {[%emt 0:00:45]} Rc4+ {[%emt 0:00:18]} 64. Kd3 {[%emt 0:00:26]} Rf4 {[%emt 0:00:30]} 65. Re1 {[%emt 0:00:34]} Rf3+ {[%emt 0:00:08]} 66. Kd4 {[%emt 0:00:10]} Rf4+ {[%emt 0:00:18]} 67. Kc5 {[%emt 0:00:14]} Rc4+ {[%emt 0:00:27]} 68. Kb5 {[%emt 0:00:14]} Rc7 {[%emt 0:00:27]} 69. Bf6 {[%emt 0:00:47] Decoy} Kg6 {[%emt 0:00:23]} 70. Kb6 {[%emt 0:00:23]} Rc4 {[%emt 0:00:11]} 71. Rh1 {[%emt 0:00:15]} Rb4+ {[%emt 0:00:26]} 72. Kc5 {[%emt 0:00:10]} Rc4+ {[%emt 0:00:03]} 73. Kd6 {[%emt 0:00:15]} Rc2 {[%emt 0:00:32]} 74. Rh6+ {[%emt 0:00:22]} Kf5 {[%emt 0:00:12]} 75. Ke7 {[%emt 0:00:36]} Rc8 {[%emt 0:00:19]} 76. Rh7 {[%emt 0:00:40]} Ra8 {[%emt 0:00:38]} 77. Rg7 {[%emt 0:00:49]} Ra7+ {[%emt 0:00:21]} 78. Ke8 {[%emt 0:00:15]} Bd5 {[%emt 0:01:38]} 79. Bd8 {[%emt 0:01:13]} Ke6 {[%emt 0:02:24]} 80. g6 {[%emt 0:02:17]} Ra8 {[%emt 0:01:37]} 81. Rxf7 {[%emt 0:00:38]} Bc6+ {[%emt 0:00:10]} 82. Kf8 {[%emt 0:00:06]} Rxd8+ {[%emt 0:00:02]} 83. Kg7 {[%emt 0:00:07]} Bd5 {[%emt 0:00:49]} 84. Rf2 {[%emt 0:00:27]} Be4 {[%emt 0:01:33]} 85. Re2 {[%emt 0:00:07]} Ke5 {[%emt 0:00:27]} 86. Kh6 {[%emt 0:00:48]} Rd6 {[%emt 0:00:40]} 87. Kh7 $11 {[%emt 0:00:22]} Kf4 {[%emt 0:02:00]} 88. Rxe4+ {[%emt 0:00:33]} Kxe4 {[%emt 0:00:19]} 89. g7 {[%emt 0:00:05]} Rd7 {[%emt 0:00:33]} 90. Kh8 {[%emt 0:00:08]} Rxg7 {[%emt 0:00:06]} 91. Kxg7 {[%emt 0:00:06]} Ke5 1/2-1/2

[Event "IIFL Wealth  4th Mumbai Junior U-13"]
[Site "Mumbai"]
[Date "2019.01.07"]
[Round "9"]
[White "Barde Om"]
[Black "Agarwal Mukund H"]
[Result "1-0"]
[ECO "B78"]
[WhiteElo "1801"]
[BlackElo "1375"]
[Annotator "NA RC"]
[PlyCount "69"]
[EventDate "2018.12.30"]
[EventType "swiss"]
[EventCountry "IND"]
[SourceTitle "playchess.com"]
[Source "ChessBase"]
[SourceQuality "1"]
[TimeControl "40/5400+30:1800+30"]

1. e4 {[%emt 0:00:00]} c5 {[%emt 0:00:00]} 2. Nf3 {[%emt 0:00:04]} d6 {[%emt 0:00:00]} 3. d4 {[%emt 0:00:05]} cxd4 {[%emt 0:00:00]} 4. Nxd4 {[%emt 0:00:05]} Nf6 {[%emt 0:00:00]} 5. Nc3 {[%emt 0:00:06]} g6 {[%emt 0:00:00]} 6. Be3 {[%emt 0:00:03]} Bg7 {[%emt 0:00:00]} 7. f3 {[%emt 0:00:08]} O-O {[%emt 0:00:02]} 8. Bc4 {[%emt 0:00:14]} Nc6 {[%emt 0:00:05]} 9. Qd2 {[%emt 0:00:15]} Bd7 {[%emt 0:00:10]} 10. O-O-O {[%emt 0:00:14]} Rc8 {[%emt 0:00:14]} 11. Bb3 {[%emt 0:00:05]} Ne5 {[%emt 0:05:23]} 12. g4 {[%emt 0:02:20]} Nc4 {[%emt 0:08:18]} 13. Bxc4 {[%emt 0:00:03]} Rxc4 {[%emt 0:00:04]} 14. Kb1 {[%emt 0:01:06]} a6 {[%emt 0:03:50]} 15. h4 {[%emt 0:04:44] B78: Sicilian Dragon: Yugoslav Attack, 9 Bc4 Bd7 10 0-0-0 Rc8} h5 {[%emt 0:08:06]} 16. gxh5 {[%emt 0:07:56] LiveBook: 4 Games} Nxh5 {[%emt 0:00:12]} 17. Nce2 {[%emt 0:00:26]} (17. Rdg1 Kh7 18. Rg5 Rh8 19. Qd3 b5 20. e5 Kg8 21. e6 fxe6 22. Rhg1 Qf8 23. Rxg6 {1-0 (40) Smirin,I (2656)-Abdyjapar,A (2368) Tromsoe 2014}) 17... Qc7 {[%emt 0:09:45]} 18. Bh6 {[%emt 0:31:59]} Rc8 {[%emt 0:14:01]} 19. Bxg7 {[%emt 0:00:06]} Kxg7 {[%emt 0:00:30]} 20. c3 {[%emt 0:19:46]} b5 {[%emt 0:03:52]} 21. Rdg1 {[%emt 0:01:25]} b4 {[%emt 0:01:41]} 22. Qg5 $146 {[%emt 0:16:55]} ({Predecessor:} 22. cxb4 e5 {1-0 (35) Kugler,F (2104)-Tkachuk,K (2176) Oberhof 2010}) 22... Rc5 {[%emt 0:00:57]} 23. Nf5+ {[%emt 0:08:17]} ({Reject} 23. Qxe7 Kg8 $19) (23. Qe3 $1 $11 {was the only way to keep the balance.}) 23... Bxf5 {[%emt 0:03:33]} 24. exf5 {[%emt 0:00:02]} Rh8 $2 {[%emt 0:02:21]} (24... bxc3 $17 25. Nxc3 Rxc3 26. Qxh5 Qc5) 25. cxb4 {[%emt 0:03:11]} Rd5 {[%emt 0:01:35]} (25... Re5 $142) 26. Nc3 $18 {[%emt 0:01:36]} Re5 {[%emt 0:01:03]} 27. f4 {[%emt 0:00:47]} Re3 {[%emt 0:00:24]} 28. Nd5 {[%emt 0:00:38]} Qc4 {[%emt 0:00:38]} 29. Nxe3 {[%emt 0:00:17]} Qd3+ {[%emt 0:00:00]} 30. Nc2 {[%emt 0:00:20]} Rc8 {[%emt 0:00:08]} 31. Rh2 {[%emt 0:00:41]} Nf6 {[%emt 0:00:29]} 32. fxg6 {[%emt 0:01:04]} fxg6 {[%emt 0:00:03]} 33. f5 {[%emt 0:00:14]} Ne4 {[%emt 0:00:36]} 34. Qxg6+ {[%emt 0:00:10]} Kh8 {[%emt 0:00:02]} 35. Qh5# {[%emt 0:00:06]} 1-0

[Event "IIFL Wealth  4th Mumbai Junior U-13"]
[Site "Mumbai"]
[Date "2019.01.07"]
[Round "9"]
[White "Garv Rai"]
[Black "Shreyas Seshadri Nallore"]
[Result "1-0"]
[ECO "A45"]
[WhiteElo "1772"]
[BlackElo "1343"]
[Annotator "NA RC"]
[PlyCount "41"]
[EventDate "2018.12.30"]
[EventType "swiss"]
[EventCountry "IND"]
[SourceTitle "playchess.com"]
[Source "ChessBase"]
[SourceQuality "1"]
[TimeControl "40/5400+30:1800+30"]

1. d4 {[%emt 0:01:22]} Nf6 {[%emt 0:00:00]} 2. Bf4 {[%emt 0:00:02]} e6 {[%emt 0:00:05]} 3. e3 {[%emt 0:00:06]} d5 {[%emt 0:00:04]} 4. Nd2 {[%emt 0:00:14]} c5 {[%emt 0:00:16]} 5. c3 {[%emt 0:00:11]} Be7 {[%emt 0:00:28]} 6. Ngf3 {[%emt 0:00:07]} O-O {[%emt 0:00:46]} 7. Ne5 {[%emt 0:00:07]} Nbd7 {[%emt 0:01:04]} 8. Bd3 {[%emt 0:00:13]} c4 {[%emt 0:00:42]} 9. Bc2 {[%emt 0:00:01]} Nxe5 {[%emt 0:00:53]} 10. dxe5 {[%emt 0:00:08]} Nd7 {[%emt 0:00:11]} 11. Nf3 {[%emt 0:01:00]} b5 {[%emt 0:02:33]} 12. h4 {[%emt 0:00:12]} f6 {[%emt 0:07:57]} 13. Bxh7+ {[%emt 0:10:27]} Kxh7 {[%emt 0:14:45]} 14. Ng5+ {[%emt 0:00:38]} fxg5 {[%emt 0:22:14]} 15. hxg5+ {[%emt 0:00:30]} Kg8 16. Rh8+ Kxh8 {[%emt 0:00:13]} 17. Qh5+ {[%emt 0:00:31]} Kg8 {[%emt 0:00:06]} 18. g6 {[%emt 0:00:08]} Nf6 {[%emt 0:00:29]} 19. exf6 {[%emt 0:00:13]} Rxf6 {[%emt 0:00:05]} 20. Qh7+ {[%emt 0:00:10]} Kf8 {[%emt 0:00:01]} 21. Qh8# {[%emt 0:00:20]} 1-0